fUSD/lending_fUSD_20241223
["ID","MTS","AMOUNT","RATE_DAILY","PERIOD"]
[346476115,1734991851669,-325.860349,0.00013698,2]
[346476116,1734991851678,-1055.33,0.00013698,2]
[346476117,1734991851687,-500.0,0.00013698,2]
[346476118,1734991851696,-581.76,0.00013698,2]
[346476119,1734991851708,-500.0,0.00013698,2]
[346476120,1734991851721,-500.0,0.00013698,2]
[346476121,1734991851729,-1181.23,0.00013698,2]
[346476122,1734991851738,-1740.13,0.00013698,2]
[346476123,1734991851747,-500.0,0.00013698,2]
[346476124,1734991851757,-3459.09,0.00013698,2]
[346476125,1734991851767,-934.59,0.00013698,2]
[346476126,1734991851778,-500.0,0.00013698,2]
[346476127,1734991851787,-500.0,0.00013698,2]
[346476128,1734991851797,-836.58,0.00013698,2]
[346476129,1734991851806,-500.0,0.00013698,2]
[346476130,1734991851815,-2241.73,0.00013698,2]
[346476131,1734991851824,-1516.41,0.00013698,2]
[346476132,1734991851834,-572.26,0.00013698,2]
[346476133,1734991851843,-642.34,0.00013698,2]
[346476134,1734991851852,-1015.11,0.00013698,2]
[346476135,1734991851861,-919.15,0.00013698,2]
[346476136,1734991851871,-500.0,0.00013698,2]
[346476137,1734991851880,-508.96777502,0.00013698,2]
[346476138,1734991851890,-500.0,0.00013698,2]
[346476139,1734991851899,-151.0,0.00013698,2]
[346476140,1734991851909,-151.0,0.00013698,2]
[346476141,1734991851918,-261.855576,0.00013698,2]
[346476142,1734991851928,-1345.7,0.00013698,2]
[346476143,1734991851937,-1698.42,0.00013698,2]
[346476144,1734991851948,-1000.0,0.00013698,2]
[346476145,1734991851957,-500.0,0.00013698,2]
[346476146,1734991851969,-953.38,0.00013698,2]
[346476147,1734991851979,-1645.01,0.00013698,2]
[346476148,1734991851989,-500.0,0.00013698,2]
[346476149,1734991851998,-500.0,0.00013698,2]
[346476150,1734991852008,-4865.97,0.00013698,2]
[346476151,1734991852020,-500.0,0.00013698,2]
[346476152,1734991852029,-732.95,0.00013698,2]
[346476153,1734991852039,-500.0,0.00013698,2]
[346476154,1734991852048,-500.0,0.00013698,2]
[346476155,1734991852058,-2713.04,0.00013698,2]
[346476156,1734991852067,-1454.45,0.00013698,2]
[346476157,1734991852077,-2428.59,0.00013698,2]
[346476158,1734991852087,-500.0,0.00013698,2]
[346476159,1734991852096,-500.0,0.00013698,2]
[346476160,1734991852105,-573.93,0.00013698,2]
[346476161,1734991852114,-500.0,0.00013698,2]
[346476162,1734991852124,-500.0,0.00013698,2]
[346476163,1734991852132,-500.0,0.00013698,2]
[346476164,1734991852142,-500.0,0.00013698,2]
[346476165,1734991852151,-1442.73,0.00013698,2]
[346476166,1734991852160,-500.0,0.00013698,2]
[346476167,1734991852169,-8800.72,0.00013698,2]
[346476168,1734991852179,-1815.9,0.00013698,2]
[346476169,1734991852188,-720.67,0.00013698,2]
[346476170,1734991852198,-1277.99,0.00013698,2]
[346476171,1734991852207,-500.0,0.00013698,2]
[346476172,1734991852219,-6175.3,0.00013698,2]
[346476173,1734991852228,-537.49,0.00013698,2]
[346476174,1734991852311,-500.0,0.00013698,2]
[346476175,1734991852321,-619.93,0.00013698,2]
[346476176,1734991852330,-500.0,0.00013698,2]
[346476177,1734991852339,-2833.51,0.00013698,2]
[346476178,1734991852348,-763.73,0.00013698,2]
[346476179,1734991852357,-879.46,0.00013698,2]
[346476180,1734991852366,-608.27,0.00013698,2]
[346476181,1734991852375,-879.46,0.00013698,2]
[346476182,1734991852384,-879.46,0.00013698,2]
[346476183,1734991852393,-500.0,0.00013698,2]
[346476184,1734991852402,-500.0,0.00013698,2]
[346476185,1734991852411,-879.46,0.00013698,2]
[346476186,1734991852419,-879.46,0.00013698,2]
[346476187,1734991852429,-500.0,0.00013698,2]
[346476188,1734991852438,-500.0,0.00013698,2]
[346476189,1734991852447,-891.15,0.00013698,2]
[346476190,1734991852456,-2266.24,0.00013698,2]
[346476191,1734991852467,-500.25,0.00013698,2]
[346476192,1734991852476,-4497.29,0.00013698,2]
[346476193,1734991852485,-500.0,0.00013698,2]
[346476194,1734991852495,-809.05,0.00013698,2]
[346476195,1734991852503,-2697.97,0.00013698,2]
[346476196,1734991852512,-911.99,0.00013698,2]
[346476197,1734991852521,-3071.9,0.00013698,2]
[346476198,1734991852530,-790.69,0.00013698,2]
[346476199,1734991852539,-500.0,0.00013698,2]
[346476200,1734991852548,-1448.58,0.00013698,2]
[346476201,1734991852557,-500.0,0.00013698,2]
[346476202,1734991852566,-2220.22,0.00013698,2]
[346476203,1734991852575,-500.0,0.00013698,2]
[346476204,1734991852584,-501.08371111,0.00013698,2]
[346476205,1734991852593,-1105.25,0.00013698,2]
[346476206,1734991852602,-933.61,0.00013698,2]
[346476207,1734991852611,-501.56870435,0.00013698,2]
[346476208,1734991852620,-2067.26,0.00013698,2]
[346476209,1734991852629,-1822.01,0.00013698,2]
[346476210,1734991852638,-500.0,0.00013698,2]
[346476211,1734991852647,-151.0,0.00013698,2]
[346476212,1734991852656,-845.83,0.00013698,2]
[346476213,1734991852665,-151.0,0.00013698,2]
[346476214,1734991852674,-3689.94,0.00013698,2]
[346476215,1734991852690,-151.0,0.00013698,2]
[346476216,1734991852699,-151.0,0.00013698,2]
[346476217,1734991852708,-501.70700247,0.00013698,2]
[346476218,1734991852719,-4829.06,0.00013698,2]
[346476219,1734991852729,-500.0,0.00013698,2]
[346476220,1734991852738,-500.0,0.00013698,2]
[346476221,1734991852747,-500.0,0.00013698,2]
[346476222,1734991852756,-1790.91,0.00013698,2]
[346476223,1734991852765,-1791.81,0.00013698,2]
[346476224,1734991852774,-507.52117299,0.00013698,2]
[346476225,1734991852785,-2863.51,0.00013698,2]
[346476226,1734991852794,-151.0,0.00013698,2]
[346476227,1734991852803,-500.0,0.00013698,2]
[346476228,1734991852811,-500.0,0.00013698,2]
[346476229,1734991852820,-500.0,0.00013698,2]
[346476230,1734991852829,-716.31,0.00013698,2]
[346476231,1734991852838,-151.0,0.00013698,2]
[346476232,1734991852847,-1774.81,0.00013698,2]
[346476233,1734991852857,-156.043294,0.00013698,2]
[346476234,1734991852866,-500.0,0.00013698,2]
[346476235,1734991852875,-1823.89,0.00013698,2]
[346476236,1734991852884,-500.0,0.00013698,2]
[346476237,1734991852894,-2747.37,0.00013698,2]
[346476238,1734991852903,-657.73,0.00013698,2]
[346476239,1734991852912,-1349.39,0.00013698,2]
[346476240,1734991852921,-500.0,0.00013698,2]
[346476241,1734991852930,-500.0,0.00013698,2]
[346476242,1734991852939,-500.0,0.00013698,2]
[346476243,1734991852948,-2338.38,0.00013698,2]
[346476244,1734991852957,-738.33,0.00013698,2]
[346476245,1734991852969,-500.0,0.00013698,2]
[346476246,1734991852978,-500.0,0.00013698,2]
[346476247,1734991852987,-2613.36,0.00013698,2]
[346476248,1734991852996,-500.0,0.00013698,2]
[346476249,1734991853005,-510.17164348,0.00013698,2]
[346476250,1734991853014,-683.62,0.00013698,2]
[346476251,1734991853023,-892.51,0.00013698,2]
[346476252,1734991853032,-1005.92,0.00013698,2]
[346476253,1734991853042,-500.0,0.00013698,2]
[346476254,1734991853052,-2568.95,0.00013698,2]
[346476255,1734991853061,-2766.99,0.00013698,2]
[346476256,1734991853070,-13387.86,0.00013698,2]
[346476257,1734991853079,-500.0,0.00013698,2]
[346476258,1734991853088,-1265.91,0.00013698,2]
[346476259,1734991853097,-535.17,0.00013698,2]
[346476260,1734991853106,-500.0,0.00013698,2]
[346476261,1734991853115,-500.0,0.00013698,2]
[346476262,1734991853124,-500.0,0.00013698,2]
[346476263,1734991853133,-4365.39,0.00013698,2]
[346476264,1734991853142,-500.0,0.00013698,2]
[346476265,1734991853152,-1837.25,0.00013698,2]
[346476266,1734991853161,-500.0,0.00013698,2]
[346476267,1734991853170,-151.0,0.00013698,2]
[346476268,1734991853180,-151.0,0.00013698,2]
[346476269,1734991853190,-151.0,0.00013698,2]
[346476270,1734991853199,-151.0,0.00013698,2]
[346476271,1734991853208,-500.0,0.00013698,2]
[346476272,1734991853220,-721.15,0.00013698,2]
[346476273,1734991853229,-500.0,0.00013698,2]
[346476274,1734991853238,-501.20378764,0.00013698,2]
[346476275,1734991853247,-685.36,0.00013698,2]
[346476276,1734991853256,-830.694462,0.00013698,2]
[346476277,1734991853265,-500.0,0.00013698,2]
[346476278,1734991853275,-830.694462,0.00013698,2]
[346476279,1734991853284,-2885.33,0.00013698,2]
[346476280,1734991853293,-830.694462,0.00013698,2]
[346476281,1734991853302,-830.694462,0.00013698,2]
[346476282,1734991853311,-1017.36,0.00013698,2]
[346476283,1734991853320,-771.99,0.00013698,2]
[346476284,1734991853329,-492.64668902,0.00013698,2]
[346476285,1734991853338,-500.0,0.00013698,2]
[346476286,1734991853347,-504.82282155,0.00013698,2]
[346476287,1734991853356,-3684.33,0.00013698,2]
[346476288,1734991853365,-1504.45,0.00013698,2]
[346476289,1734991853374,-830.694462,0.00013698,2]
[346476290,1734991853383,-830.694462,0.00013698,2]
[346476291,1734991853392,-666.12,0.00013698,2]
[346476292,1734991853400,-4618.89,0.00013698,2]
[346476293,1734991853409,-830.694462,0.00013698,2]
[346476294,1734991853419,-7462.41,0.00013698,2]
[346476295,1734991853428,-507.72,0.00013698,2]
[346476296,1734991853437,-830.694462,0.00013698,2]
[346476297,1734991853446,-500.0,0.00013698,2]
[346476298,1734991853455,-1104.96,0.00013698,2]
[346476299,1734991853464,-668.52,0.00013698,2]
[346476300,1734991853473,-500.0,0.00013698,2]
[346476301,1734991853482,-500.72184488,0.00013698,2]
[346476302,1734991853491,-971.83,0.00013698,2]
[346476303,1734991853500,-3056.88,0.00013698,2]
[346476304,1734991853509,-7795.45,0.00013698,2]
[346476305,1734991853518,-3877.89,0.00013698,2]
[346476306,1734991853528,-2945.75,0.00013698,2]
[346476307,1734991853536,-3328.34,0.00013698,2]
[346476308,1734991853545,-670.12,0.00013698,2]
[346476309,1734991853554,-500.0,0.00013698,2]
[346476310,1734991853563,-657.61,0.00013698,2]
[346476311,1734991853571,-500.0,0.00013698,2]
[346476312,1734991853580,-500.0,0.00013698,2]
[346476313,1734991853589,-10820.71,0.00013698,2]
[346476314,1734991853598,-1340.15,0.00013698,2]
[346476315,1734991853607,-563.13,0.00013698,2]
[346476316,1734991853616,-500.0,0.00013698,2]
[346476317,1734991853626,-3122.03,0.00013698,2]
[346476318,1734991853635,-7212.55,0.00013698,2]
[346476319,1734991853644,-7607.17,0.00013698,2]
[346476320,1734991853653,-500.0,0.00013698,2]
[346476321,1734991853662,-727.37,0.00013698,2]
[346476322,1734991853672,-1852.64,0.00013698,2]
[346476323,1734991853683,-746.64,0.00013698,2]
[346476324,1734991853692,-6651.5,0.00013698,2]
[346476325,1734991853704,-511.23,0.00013698,2]
[346476326,1734991853715,-525.12,0.00013698,2]
[346476327,1734991853724,-500.0,0.00013698,2]
[346476328,1734991853733,-500.0,0.00013698,2]
[346476329,1734991853742,-500.0,0.00013698,2]
[346476330,1734991853751,-1091.5,0.00013698,2]
[346476331,1734991853760,-381.57561852,0.00013698,2]
[346476332,1734991853769,-5221.56,0.00013698,2]
[346476333,1734991853778,-500.0,0.00013698,2]
[346476334,1734991853788,-629.17,0.00013698,2]
[346476335,1734991853797,-3222.94,0.00013698,2]
[346476336,1734991853806,-376.99438128,0.00013698,2]
[346476337,1734991853815,-702.53,0.00013698,2]
[346476338,1734991853824,-1462.38,0.00013698,2]
[346476339,1734991853833,-5848.75,0.00013698,2]
[346476340,1734991853842,-1060.76,0.00013698,2]
[346476341,1734991853852,-500.0,0.00013698,2]
[346476342,1734991853861,-500.0,0.00013698,2]
[346476343,1734991853870,-500.0,0.00013698,2]
[346476344,1734991853879,-500.0,0.00013698,2]
[346476345,1734991853888,-500.0,0.00013698,2]
[346476346,1734991853897,-500.0,0.00013698,2]
[346476347,1734991853907,-3430.21,0.00013698,2]
[346476348,1734991853916,-518.27538464,0.00013698,2]
[346476349,1734991853925,-1234.93,0.00013698,2]
[346476350,1734991853934,-3483.29,0.00013698,2]
[346476351,1734991853943,-1155.11294,0.00013698,2]
[346476352,1734991853952,-1155.11294,0.00013698,2]
[346476353,1734991853961,-1155.11294,0.00013698,2]
[346476354,1734991853974,-500.0,0.00013698,2]
[346476355,1734991853983,-1155.11294,0.00013698,2]
[346476356,1734991853993,-5545.23,0.00013698,2]
[346476357,1734991854002,-1861.45,0.00013698,2]
[346476358,1734991854012,-713.67,0.00013698,2]
[346476359,1734991854021,-503.01842221,0.00013698,2]
[346476360,1734991854031,-1938.93,0.00013698,2]
[346476361,1734991854040,-1155.11294,0.00013698,2]
[346476362,1734991854049,-500.0,0.00013698,2]
[346476363,1734991854058,-1155.11294,0.00013698,2]
[346476364,1734991854067,-1155.11294,0.00013698,2]
[346476365,1734991854076,-1155.11294,0.00013698,2]
[346476366,1734991854086,-500.0,0.00013698,2]
[346476367,1734991854096,-500.0,0.00013698,2]
[346476368,1734991854105,-500.0,0.00013698,2]
[346476369,1734991854115,-6117.02,0.00013698,2]
[346476370,1734991854125,-151.0,0.00013698,2]
[346476371,1734991854134,-3046.59,0.00013698,2]
[346476372,1734991854143,-151.0,0.00013698,2]
[346476373,1734991854152,-27881.46,0.00013698,2]
[346476374,1734991854161,-151.0,0.00013698,2]
[346476375,1734991854170,-500.0,0.00013698,2]
[346476376,1734991854179,-151.0,0.00013698,2]
[346476377,1734991854188,-839.8,0.00013698,2]
[346476378,1734991854197,-500.0,0.00013698,2]
[346476379,1734991854206,-1142.13,0.00013698,2]
[346476380,1734991854217,-151.0,0.00013698,2]
[346476381,1734991854226,-1129.08,0.00013698,2]
[346476382,1734991854235,-151.0,0.00013698,2]
[346476383,1734991854244,-300.067824,0.00013698,2]
[346476384,1734991854253,-500.0,0.00013698,2]
[346476385,1734991854262,-4163.74,0.00013698,2]
[346476386,1734991854271,-984.84,0.00013698,2]
[346476387,1734991854280,-1151.36,0.00013698,2]
[346476388,1734991854289,-500.0,0.00013698,2]
[346476389,1734991854298,-1029.93,0.00013698,2]
[346476390,1734991854307,-2907.43,0.00013698,2]
[346476391,1734991854316,-815.56,0.00013698,2]
[346476392,1734991854325,-500.0,0.00013698,2]
[346476393,1734991854335,-1021.04,0.00013698,2]
[346476394,1734991854343,-9090.17,0.00013698,2]
[346476395,1734991854352,-500.0,0.00013698,2]
[346476396,1734991854361,-500.0,0.00013698,2]
[346476397,1734991854370,-500.0,0.00013698,2]
[346476398,1734991854379,-1661.16,0.00013698,2]
[346476399,1734991854388,-500.0,0.00013698,2]
[346476400,1734991854398,-1200.29,0.00013698,2]
[346476401,1734991854407,-500.0,0.00013698,2]
[346476402,1734991854416,-2656.7,0.00013698,2]
[346476403,1734991854425,-1587.308053,0.00013698,2]
[346476404,1734991854434,-1587.308053,0.00013698,2]
[346476405,1734991854443,-1017.15,0.00013698,2]
[346476406,1734991854452,-1587.308053,0.00013698,2]
[346476407,1734991854461,-240.7990635,0.00013698,2]
[346476408,1734991854472,-500.0,0.00013698,2]
[346476409,1734991854481,-1587.308053,0.00013698,2]
[346476410,1734991854491,-1017.51,0.00013698,2]
[346476411,1734991854500,-1332.63,0.00013698,2]
[346476412,1734991854508,-1587.308053,0.00013698,2]
[346476413,1734991854518,-500.0,0.00013698,2]
[346476414,1734991854530,-500.0,0.00013698,2]
[346476415,1734991854539,-1587.308053,0.00013698,2]
[346476416,1734991854547,-1587.308053,0.00013698,2]
[346476417,1734991854556,-1705.78,0.00013698,2]
[346476418,1734991854565,-1587.308053,0.00013698,2]
[346476419,1734991854574,-2974.41,0.00013698,2]
[346476420,1734991854583,-499.1988,0.00013698,2]
[346476421,1734991854592,-2376.77,0.00013698,2]
[346476422,1734991854601,-500.0,0.00013698,2]
[346476423,1734991854610,-3725.23,0.00013698,2]
[346476424,1734991854619,-500.0,0.00013698,2]
[346476425,1734991854629,-150.39,0.00013699,2]
[346476426,1734991854638,-151.0,0.00013699,2]
[346476427,1734991854646,-151.0,0.00013699,2]
[346476428,1734991854655,-151.0,0.00013699,2]
[346476429,1734991854664,-151.0,0.00013699,2]
[346476430,1734991854673,-382.1,0.00013699,2]
[346476431,1734991854684,-200.0,0.00013699,2]
[346476432,1734991854693,-151.0,0.00013699,2]
[346476433,1734991854702,-151.0,0.00013699,2]
[346476434,1734991854710,-151.0,0.00013699,2]
[346476435,1734991854722,-201.593133,0.00013699,2]
[346476436,1734991854731,-201.593133,0.00013699,2]
[346476437,1734991854739,-151.0,0.00013699,2]
[346476438,1734991854748,-151.0,0.00013699,2]
[346476439,1734991854757,-151.0,0.00013699,2]
[346476440,1734991854767,-151.0,0.00013699,2]
[346476441,1734991854777,-225.558239,0.00013699,2]
[346476442,1734991854787,-151.0,0.00013699,2]
[346476443,1734991854797,-151.0,0.00013699,2]
[346476444,1734991854807,-724.954025,0.00013699,2]
[346476445,1734991854816,-724.954025,0.00013699,2]
[346476446,1734991854825,-822.726927,0.00013699,2]
[346476447,1734991854834,-822.726927,0.00013699,2]
[346476448,1734991854843,-9053.426628,0.00013699,2]
[346476449,1734991854852,-151.0,0.00013699,2]
[346476450,1734991854862,-151.0,0.00013699,2]
[346476451,1734991854871,-151.0,0.00013699,2]
[346476452,1734991854880,-151.0,0.00013699,2]
[346476453,1734991854889,-151.0,0.00013699,2]
[346476454,1734991854899,-325.860349,0.00013699,2]
[346476455,1734991854908,-325.860349,0.00013699,2]
[346476456,1734991854918,-151.0,0.00013699,2]
[346476457,1734991854928,-151.0,0.00013699,2]
[346476458,1734991854937,-151.0,0.00013699,2]
[346476459,1734991854946,-830.694462,0.00013699,2]
[346476460,1734991854956,-830.694462,0.00013699,2]
[346476461,1734991854966,-1155.11294,0.00013699,2]
[346476462,1734991854976,-1155.11294,0.00013699,2]
[346476463,1734991854985,-151.0,0.00013699,2]
[346476464,1734991854995,-1587.308053,0.00013699,2]
[346476465,1734991855004,-1587.308053,0.00013699,2]
[346476466,1734991855014,-1400.0,0.000137,5]
[346476467,1734991855024,-151.0,0.0001372,2]
[346476468,1734991855033,-169.118873,0.0001372,2]
[346476469,1734991855044,-151.0,0.0001372,2]
[346476470,1734991855053,-196.450059,0.0001372,2]
[346476471,1734991855063,-169.118873,0.0001372,2]
[346476472,1734991855073,-879.46,0.00013752,2]
[346476473,1734991855082,-151.0,0.00013753,2]
[346476474,1734991855092,-151.0,0.00013753,2]
[346476475,1734991855102,-151.0,0.00013753,2]
[346476476,1734991855111,-151.0,0.00013753,2]
[346476477,1734991855121,-151.0,0.00013753,2]
[346476478,1734991855130,-333.342803,0.00013753,2]
[346476479,1734991855138,-333.342803,0.00013753,2]
[346476480,1734991855147,-188.336895,0.00013753,2]
[346476481,1734991855157,-188.336895,0.00013753,2]
[346476482,1734991855166,-977.917791,0.00013753,2]
[346476483,1734991855177,-977.917791,0.00013753,2]
[346476484,1734991855186,-1209.077764,0.00013753,2]
[346476485,1734991855195,-1209.077764,0.00013753,2]
[346476486,1734991855205,-151.0,0.00013753,2]
[346476487,1734991855214,-151.0,0.00013753,2]
[346476488,1734991855226,-574.471843,0.00013753,2]
[346476489,1734991855235,-574.471843,0.00013753,2]
[346476490,1734991855244,-151.0,0.00013753,2]
[346476491,1734991855254,-151.0,0.00013753,2]
[346476492,1734991855263,-151.0,0.00013753,2]
[346476493,1734991855272,-151.0,0.00013753,2]
[346476494,1734991855282,-151.0,0.00013753,2]
[346476495,1734991855291,-325.860349,0.00013753,2]
[346476496,1734991855299,-325.860349,0.00013753,2]
[346476497,1734991855309,-151.0,0.00013753,2]
[346476498,1734991855318,-184.870001,0.00013753,2]
[346476499,1734991855327,-151.0,0.00013753,2]
[346476500,1734991855337,-830.694462,0.00013753,2]
[346476501,1734991855345,-830.694462,0.00013753,2]
[346476502,1734991855354,-1155.11294,0.00013753,2]
[346476503,1734991855363,-1155.11294,0.00013753,2]
[346476504,1734991855372,-151.0,0.00013753,2]
[346476505,1734991855381,-1587.308053,0.00013753,2]
[346476506,1734991855391,-1587.308053,0.00013753,2]
[346476507,1734991855400,-118237.0,0.00013753,2]
[346476508,1734991855409,-27931.0,0.00013753,2]
[346476509,1734991855418,-1000.0,0.00013756,2]
[346476510,1734991855428,-578.05,0.00013771,2]
[346476511,1734991855437,-151.0,0.00013771,2]
[346476512,1734991855445,-225.558239,0.00013771,2]
[346476513,1734991855454,-151.0,0.00013771,2]
[346476514,1734991855464,-151.0,0.00013771,2]
[346476515,1734991855473,-724.954025,0.00013771,2]
[346476516,1734991855483,-724.954025,0.00013771,2]
[346476517,1734991855491,-822.726927,0.00013771,2]
[346476518,1734991855500,-822.726927,0.00013771,2]
[346476519,1734991855509,-9053.426628,0.00013771,2]
[346476520,1734991855518,-151.0,0.00013771,2]
[346476521,1734991855528,-151.0,0.00013771,2]
[346476522,1734991855539,-151.0,0.00013771,2]
[346476523,1734991855548,-151.0,0.00013771,2]
[346476524,1734991855557,-879.46,0.00013771,2]
[346476525,1734991855566,-879.46,0.00013771,2]
[346476526,1734991855575,-879.46,0.00013771,2]
[346476527,1734991855584,-879.46,0.00013771,2]
[346476528,1734991855593,-879.46,0.00013771,2]
[346476530,1734991855603,-879.46,0.00013771,2]
[346476531,1734991855612,-879.46,0.00013771,2]
[346476532,1734991855625,-879.46,0.00013771,2]
[346476533,1734991855636,-879.46,0.00013771,2]
[346476534,1734991855646,-190.90796761,0.00013771,2]
[346476535,1734991855655,-151.0,0.00013772,2]
[346476536,1734991855664,-151.0,0.00013772,2]
[346476537,1734991855673,-151.0,0.00013772,2]
[346476538,1734991855684,-151.0,0.00013772,2]
[346476539,1734991855693,-151.0,0.00013772,2]
[346476540,1734991855706,-151.0,0.00013772,2]
[346476541,1734991855716,-151.0,0.00013772,2]
[346476542,1734991855725,-151.0,0.00013772,2]
[346476543,1734991855734,-151.0,0.00013772,2]
[346476544,1734991855745,-151.0,0.00013772,2]
[346476545,1734991855754,-333.342803,0.00013772,2]
[346476546,1734991855763,-151.0,0.00013772,2]
[346476547,1734991855774,-333.342803,0.00013772,2]
[346476548,1734991855783,-274.4,0.00013772,2]
[346476549,1734991855792,-154.990274,0.00013772,2]
[346476550,1734991855801,-201.593133,0.00013772,2]
[346476551,1734991855810,-201.593133,0.00013772,2]
[346476552,1734991855820,-188.336895,0.00013772,2]
[346476553,1734991855829,-188.336895,0.00013772,2]
[346476554,1734991855838,-169.118873,0.00013772,2]
[346476555,1734991855848,-151.0,0.00013772,2]
[346476556,1734991855857,-151.0,0.00013772,2]
[346476557,1734991855867,-169.118873,0.00013772,2]
[346476558,1734991855876,-977.917791,0.00013772,2]
[346476559,1734991855885,-977.917791,0.00013772,2]
[346476560,1734991855895,-1209.077764,0.00013772,2]
[346476562,1734991855904,-151.0,0.00013772,2]
[346476563,1734991855914,-151.0,0.00013772,2]
[346476564,1734991855923,-1209.077764,0.00013772,2]
[346476565,1734991855932,-151.0,0.00013772,2]
[346476566,1734991855941,-151.0,0.00013772,2]
[346476567,1734991855961,-151.0,0.00013772,2]
[346476568,1734991855973,-151.0,0.00013772,2]
[346476569,1734991855982,-151.0,0.00013772,2]
[346476570,1734991855992,-225.558239,0.00013772,2]
[346476571,1734991856001,-151.0,0.00013772,2]
[346476572,1734991856010,-151.0,0.00013772,2]
[346476573,1734991856020,-724.954025,0.00013772,2]
[346476574,1734991856029,-724.954025,0.00013772,2]
[346476575,1734991856038,-822.726927,0.00013772,2]
[346476576,1734991856047,-822.726927,0.00013772,2]
[346476577,1734991856056,-9053.426628,0.00013772,2]
[346476578,1734991856065,-151.0,0.00013772,2]
[346476579,1734991856075,-151.0,0.00013772,2]
[346476580,1734991856084,-574.471843,0.00013772,2]
[346476581,1734991856093,-574.471843,0.00013772,2]
[346476582,1734991856103,-151.0,0.00013772,2]
[346476583,1734991856112,-280.407905,0.00013772,2]
[346476584,1734991856121,-151.0,0.00013772,2]
[346476585,1734991856131,-151.0,0.00013772,2]
[346476586,1734991856140,-151.0,0.00013772,2]
[346476587,1734991856149,-205.451658,0.00013772,2]
[346476588,1734991856159,-151.0,0.00013772,2]
[346476589,1734991856169,-325.860349,0.00013772,2]
[346476590,1734991856177,-325.860349,0.00013772,2]
[346476591,1734991856187,-151.0,0.00013772,2]
[346476592,1734991856196,-151.0,0.00013772,2]
[346476593,1734991856205,-830.694462,0.00013772,2]
[346476594,1734991856216,-830.694462,0.00013772,2]
[346476595,1734991856226,-1155.11294,0.00013772,2]
[346476596,1734991856236,-1155.11294,0.00013772,2]
[346476597,1734991856246,-151.0,0.00013772,2]
[346476598,1734991856255,-1587.308053,0.00013772,2]
[346476599,1734991856264,-1587.308053,0.00013772,2]
[346476600,1734991856274,-377314.4629136,0.00013772,2]
[346476602,1734991856973,-542.381,0.00013698,2]
[346476603,1734991857001,-1053.59779256,0.00013698,2]
[346476604,1734991857012,-665.46330128,0.00013698,2]
[346476605,1734991857023,-102.94790616,0.00013698,2]
[346476606,1734991857033,-696.37509384,0.00013772,2]
[346476607,1734991857051,-1228.99666564,0.00013772,2]
[346476608,1734991857662,-133827.15021075,0.00013198,2]
[346476609,1734991857778,-347.58092352,0.00013198,2]
[346476610,1734991857790,-4085.99495546,0.00013198,2]
[346476611,1734991857800,-1522.9792,0.00013198,2]
[346476629,1734992390377,1.57595816,0.00010699,2]
[346476630,1734992390401,894.68404184,0.00010699,2]
[346476631,1734992717794,160.25,0.00010137,2]
[346476678,1734993032363,-250.0,0.00012203,2]
[346476679,1734993032372,-300.0,0.00012237,2]
[346476680,1734993032382,-23900.0,0.00012238,2]